bitfinex/quotes_SOLUSD_20250517
["timestamp","ask_amount","ask_price","bid_price","bid_amount"]
[1747458349443,20.71618822,168.95,168.91,19.0]
[1747458349808,20.71618822,168.95,168.91,18.5]
[1747458350233,20.71618822,168.95,168.9,19.0]
[1747458351271,50.31074282,168.95,168.9,19.0]
[1747458351806,50.31074282,168.95,168.88,19.0]
[1747458352014,26.0,168.92,168.88,19.0]
[1747458352726,26.0,168.92,168.87,240.5]
[1747458353109,26.0,168.92,168.87,19.0]
[1747458353717,20.72109407,168.91,168.87,19.0]
[1747458353922,20.72109407,168.91,168.86,37.98]
[1747458357340,5.92031259,168.91,168.86,37.98]
[1747458358112,5.9185606,168.96,168.87,25.26674886]
[1747458358611,31.9185606,168.96,168.87,25.26674886]
[1747458359016,46.71496211,168.96,168.87,25.26674886]
[1747458360657,26.0,168.92,168.83,32.87516521]
[1747458360813,26.0,168.92,168.83,51.87516521]
[1747458362014,26.0,168.92,168.84,18.64964886]
[1747458362839,5.92031259,168.91,168.84,18.64964886]
[1747458364043,5.92031259,168.91,168.85,1.5075]
[1747458366753,5.92031259,168.91,168.86,18.64964886]
[1747458366933,31.91926127,168.94,168.88,18.64964886]
[1747458367246,31.91926127,168.94,168.89,19.0]
[1747458367436,46.71741446,168.94,168.89,19.0]
[1747458368452,26.0,168.91,168.89,19.0]
[1747458368838,5.92066311,168.9,168.89,19.0]
[1747458369633,5.91961167,168.93,168.89,19.0]
[1747458375461,1.5412,168.99,168.9,18.64964886]
[1747458375755,5.9185606,168.96,168.9,235.44964886]
[1747458377629,5.9185606,168.96,168.9,241.37022932]
[1747458381147,5.9185606,168.96,168.9,235.44964886]
[1747458383867,5.9185606,168.96,168.92,18.64964886]
[1747458384073,31.91821033,168.97,168.92,18.64964886]
[1747458385265,31.91821033,168.97,168.92,100.74964886]
[1747458386367,31.91821033,168.97,168.92,82.1]
[1747458386569,31.91821033,168.97,168.93,18.98]
[1747458387054,46.71373616,168.97,168.93,18.98]
[1747458389453,46.71373616,168.97,168.92,18.98]
[1747458390070,46.71373616,168.97,168.91,101.08]
[1747458390276,46.71373616,168.97,168.92,18.98]
[1747458391877,46.71373616,168.97,168.91,101.08]
[1747458392060,46.71373616,168.97,168.91,120.06]
[1747458392370,76.30478782,168.97,168.91,120.06]
[1747458394266,76.30478782,168.97,168.91,37.96]
[1747458394652,76.30478782,168.97,168.91,18.98]
[1747458397670,76.30478782,168.97,168.83,114.97516521]
[1747458397671,26.0,168.93,168.83,114.97516521]
[1747458397872,26.0,168.92,168.84,37.96]
[1747458398059,26.0,168.92,168.85,18.98]
[1747458398250,26.0,168.92,168.84,18.98]
[1747458398450,26.0,168.92,168.84,101.08]
[1747458398671,26.0,168.92,168.85,18.98]
[1747458398975,26.0,168.88,168.85,18.98]
[1747458401576,31.92171492,168.87,168.85,18.98]
[1747458401976,5.92171492,168.87,168.85,18.98]
[1747458402478,5.92031259,168.91,168.86,18.64964886]
[1747458403578,1.562,168.96,168.86,18.64964886]
[1747458403579,14.79465025,168.98,168.88,24.57093761]
[1747458403813,14.79465025,168.98,168.9,24.95874886]
[1747458404078,26.0,168.97,168.92,18.64964886]
[1747458404257,5.91750991,168.99,168.92,18.64964886]
[1747458404660,31.91750991,168.99,168.92,18.64964886]
[1747458409200,31.91750991,168.99,168.92,100.74964886]
[1747458410700,46.71128468,168.99,168.92,82.1]
[1747458411871,46.71128468,168.99,168.93,18.96]
[1747458412091,5.91891092,168.95,168.93,18.96]
[1747458413386,5.91961167,168.93,168.92,82.1]
[1747458413582,31.91932849,168.94,168.9,101.06]
[1747458414094,26.0,168.94,168.91,18.64964886]
[1747458414270,31.91928059,168.94,168.91,18.64964886]
[1747458415377,26.0,168.94,168.91,18.64964886]
[1747458417502,5.91961167,168.93,168.92,18.96]
[1747458418201,5.91961167,168.93,168.92,101.06]
[1747458421282,5.91961167,168.93,168.92,18.96]
[1747458427789,5.91938287,168.94,168.92,18.96]
[1747458428320,5.91891092,168.95,168.92,18.96]
[1747458430184,5.91891092,168.95,168.92,101.06]
[1747458432917,26.0,168.98,168.92,101.06]
[1747458433216,5.91821033,168.97,168.93,18.64964886]
[1747458433715,5.91821033,168.97,168.86,2.5541998]
[1747458433716,18.64964886,168.9,168.86,2.5541998]
[1747458433923,26.0,168.87,168.81,8.44159961]
[1747458434498,26.0,168.87,168.77,18.96]
[1747458434707,26.0,168.87,168.79,18.96]
[1747458435515,20.72722965,168.86,168.8,9.22802645]
[1747458438706,20.72722965,168.86,168.79,18.96]
[1747458440799,20.72722965,168.86,168.8,18.96]
[1747458441011,26.0,168.83,168.8,18.96]
[1747458442201,26.0,168.83,168.79,18.96]
[1747458442202,26.0,168.8,168.79,18.96]
[1747458442412,5.92346878,168.82,168.79,18.96]
[1747458442596,26.0,168.8,168.79,18.96]
[1747458442814,26.0,168.8,168.77,18.96]
[1747458444135,5.92452159,168.79,168.77,18.96]
[1747458444542,20.73582557,168.79,168.74,18.96]
[1747458444839,20.73582557,168.79,168.75,18.96]
[1747458445133,20.73582557,168.79,168.74,18.96]
[1747458445335,20.73582557,168.79,168.75,18.96]
[1747458445507,26.0,168.76,168.75,18.96]
[1747458445707,20.73582557,168.79,168.75,18.96]
[1747458445934,26.0,168.76,168.75,18.96]
[1747458446520,5.92592592,168.75,168.74,18.96]
[1747458446735,5.92592592,168.75,168.74,37.92]
[1747458448538,5.92487261,168.78,168.74,37.92]
[1747458449842,31.92452159,168.79,168.74,37.92]
[1747458450022,31.92452159,168.79,168.74,120.02]
[1747458453126,5.92452159,168.79,168.75,18.64964886]
[1747458454239,5.92417061,168.8,168.75,18.64964886]
[1747458457242,5.92417061,168.8,168.75,100.74964886]
[1747458460448,5.92417061,168.8,168.76,18.96]
[1747458463456,5.92417061,168.8,168.76,101.06]
[1747458468269,20.73459715,168.8,168.76,101.06]
[1747458468429,20.73459715,168.8,168.76,82.1]
[1747458468629,26.0,168.77,168.76,82.1]
[1747458469945,31.92522367,168.77,168.76,82.1]
[1747458470265,31.92522367,168.77,168.74,18.96]
[1747458470564,46.73828286,168.77,168.73,37.92]
[1747458472629,46.73828286,168.77,168.71,82.1]
[1747458473035,46.73828286,168.77,168.72,18.96]
[1747458474531,46.73828286,168.77,168.73,18.96]
[1747458475241,46.73828286,168.77,168.74,18.96]
[1747458477962,46.23828286,168.77,168.74,18.96]
[1747458481859,80.72949922,168.77,168.62,227.73022538]
[1747458482156,80.72949922,168.77,168.64,18.64964886]
[1747458482360,83.73516763,168.77,168.64,18.64964886]
[1747458482655,90.23412865,168.77,168.64,18.64964886]
[1747458485255,90.23412865,168.77,168.64,24.57942133]
[1747458487267,90.23412865,168.77,168.64,106.67942133]
[1747458494158,60.60801027,168.77,168.64,106.67942133]
[1747458495268,60.60801027,168.77,168.64,241.37942133]
[1747458495856,65.34649156,168.77,168.64,241.37942133]
[1747458496157,26.0,168.72,168.64,241.37942133]
[1747458497470,5.92733092,168.71,168.64,241.37942133]
[1747458497878,31.92709033,168.72,168.64,241.37942133]
[1747458498080,26.0,168.74,168.66,18.64964886]
[1747458498872,5.92592592,168.75,168.66,18.64964886]
[1747458499058,31.92592592,168.75,168.67,5.92873658]
[1747458499377,31.92592592,168.75,168.67,222.72873658]
[1747458500477,31.92592592,168.75,168.69,18.64964886]
[1747458500772,31.92592592,168.75,168.7,18.98]
[1747458502252,46.74074073,168.75,168.69,82.1]
[1747458502451,46.74074073,168.75,168.7,18.96]
[1747458504277,31.92592592,168.75,168.7,18.96]
[1747458505282,31.92592592,168.75,168.7,101.06]
[1747458506285,46.74074073,168.75,168.7,101.06]
[1747458508276,46.74074073,168.75,168.7,18.96]
[1747458511980,46.74074073,168.75,168.69,18.96]
[1747458514366,46.74074073,168.75,168.69,101.06]
[1747458518299,49.74640914,168.75,168.69,101.06]
[1747458518478,56.24537016,168.75,168.69,101.06]
[1747458519191,3.00566841,168.74,168.69,101.06]
[1747458519372,5.92662834,168.73,168.69,101.06]
[1747458524301,5.92640177,168.74,168.69,101.06]
[1747458525197,31.92598368,168.75,168.7,18.64964886]
[1747458526301,8.45677675,168.83,168.82,18.64964886]
[1747458526601,8.45677675,168.85,168.82,56.56964886]
[1747458527100,8.45677675,168.85,168.82,37.92]
[1747458528510,14.3792581,168.85,168.82,37.92]
[1747458528805,14.3792581,168.85,168.82,18.96]
[1747458529217,5.92248135,168.85,168.82,18.96]
[1747458530309,31.92248135,168.85,168.82,18.96]
[1747458530476,26.0,168.83,168.78,240.82]
[1747458532408,20.73214073,168.82,168.78,240.82]
[1747458533275,20.73214073,168.82,168.78,18.96]
[1747458533487,26.0,168.79,168.78,18.96]
[1747458534508,31.92452159,168.79,168.78,18.96]
[1747458541809,46.73582557,168.79,168.75,18.96]
[1747458542213,46.73582557,168.79,168.72,18.96]
[1747458542390,46.73582557,168.79,168.73,18.96]
[1747458543108,46.73582557,168.79,168.74,18.64964886]
[1747458544507,26.0,168.8,168.74,18.64964886]
[1747458545310,26.0,168.82,168.74,18.64964886]
[1747458546303,20.73336886,168.81,168.74,18.64964886]
[1747458551446,0.0681938,168.89,168.78,18.64964886]
[1747458551601,0.0681938,168.89,168.79,37.9]
[1747458551799,0.0681938,168.89,168.8,18.64964886]
[1747458552112,26.0681938,168.89,168.8,18.64964886]
[1747458552324,0.0681938,168.89,168.8,18.64964886]
[1747458552499,26.0681938,168.89,168.8,18.64964886]
[1747458552819,26.0681938,168.89,168.81,37.9]
[1747458552820,26.0,168.87,168.81,37.9]
[1747458553608,5.92206561,168.86,168.81,37.9]
[1747458558942,20.72722965,168.86,168.81,37.9]
[1747458561042,20.72722965,168.86,168.81,18.94]
[1747458561648,26.0,168.83,168.81,18.94]
[1747458562020,26.0,168.83,168.81,37.88]
[1747458562221,5.92346878,168.82,168.81,37.88]
[1747458566248,5.92346878,168.82,168.81,18.94]
[1747458566845,35.54081269,168.82,168.76,18.94]
[1747458567045,26.0,168.79,168.77,18.94]
[1747458568447,5.92487261,168.78,168.77,18.94]
[1747458573152,5.92487261,168.78,168.76,18.94]
[1747458575755,50.36141721,168.78,168.72,221.7]
[1747458575955,26.0,168.75,168.71,18.96]
[1747458576159,26.0,168.73,168.66,4.23726046]
[1747458576370,1.5787,168.75,168.66,4.23726046]
[1747458576532,26.0,168.73,168.66,4.23726046]
[1747458576860,26.0,168.73,168.67,18.64964886]
[1747458577045,27.5787,168.75,168.67,37.58964886]
[1747458577238,26.0,168.75,168.67,37.58964886]
[1747458577554,5.92627711,168.74,168.67,43.76514886]
[1747458577759,20.74196989,168.74,168.67,43.76514886]
[1747458579757,20.74196989,168.74,168.68,37.9]
[1747458582462,20.74196989,168.74,168.69,18.96]
[1747458582957,26.0,168.71,168.68,18.94]
[1747458583141,26.0,168.71,168.69,18.96]
[1747458583549,5.92768227,168.7,168.69,18.96]
[1747458589746,26.0,168.71,168.69,18.96]
[1747458590264,14.81569278,168.74,168.69,18.96]
[1747458590265,40.81569278,168.74,168.69,18.96]
[1747458590868,14.81569278,168.74,168.69,18.96]
[1747458591365,5.92697961,168.72,168.69,18.96]
[1747458592464,14.81361514,168.77,168.69,18.96]
[1747458592669,26.0,168.76,168.69,18.96]
[1747458593854,5.92592592,168.75,168.69,18.96]
[1747458595262,5.92592592,168.75,168.7,18.64964886]
[1747458596361,5.92592592,168.75,168.7,26.86834886]
[1747458596750,26.0,168.77,168.7,32.79594028]
[1747458597163,26.0,168.77,168.7,26.86834886]
[1747458597367,5.92557478,168.76,168.7,26.86834886]
[1747458599468,5.92557478,168.76,168.7,18.64964886]
[1747458599657,14.81015689,168.81,168.7,50.5772435]
[1747458600156,5.92311792,168.83,168.74,18.64964886]
[1747458600361,31.92311792,168.83,168.76,18.64964886]
[1747458602245,46.73091274,168.83,168.76,18.64964886]
[1747458602853,46.73091274,168.83,168.75,37.9]
[1747458605871,46.73091274,168.83,168.76,18.94]
[1747458608080,46.73091274,168.83,168.76,37.58964886]
[1747458610977,31.92311792,168.83,168.77,18.64964886]
[1747458613973,5.92311792,168.83,168.77,5.92513524]
[1747458614901,26.0,168.85,168.78,18.64964886]
[1747458614902,5.92285681,168.84,168.78,18.64964886]
[1747458616085,5.92285681,168.84,168.78,5.92462268]
[1747458617283,5.92285681,168.84,168.77,24.57487253]
[1747458618187,5.92285681,168.84,168.78,18.94]
[1747458619576,20.7297746,168.84,168.77,18.94]
[1747458623269,26.0,168.81,168.76,18.92]
[1747458623473,26.0,168.81,168.77,18.94]
[1747458623884,5.92417061,168.8,168.76,18.92]
[1747458624087,5.92417061,168.8,168.77,18.94]
[1747458625898,5.92381967,168.81,168.77,18.94]
[1747458626071,20.73336886,168.81,168.77,18.94]
[1747458626272,20.73336886,168.81,168.76,18.92]
[1747458626598,20.73336886,168.81,168.77,18.94]
[1747458631276,20.73336886,168.81,168.77,101.04]
[1747458634503,0.0681938,168.79,168.77,82.1]
[1747458636532,0.0681938,168.79,168.76,18.92]
[1747458638612,26.0,168.78,168.76,18.92]
[1747458640010,5.92522367,168.77,168.74,18.94]
[1747458640201,20.73828286,168.77,168.73,18.94]
[1747458640410,20.73828286,168.77,168.71,37.88]
[1747458643187,20.73828286,168.77,168.72,18.94]
[1747458648321,26.0,168.74,168.71,101.04]
[1747458649409,26.0,168.74,168.71,18.94]
[1747458649594,5.92662834,168.73,168.71,18.94]
[1747458661316,5.92592592,168.75,168.72,18.64964886]
[1747458662824,5.92557478,168.76,168.72,18.64964886]
[1747458664922,31.92452159,168.79,168.72,24.57653551]
[1747458665123,31.92452159,168.79,168.72,100.74964886]
[1747458667344,5.92452159,168.79,168.72,106.67662846]
[1747458668919,5.92452159,168.79,168.72,100.74964886]
[1747458670933,26.0,168.78,168.72,100.74964886]
[1747458671318,26.0,168.78,168.71,18.94]
[1747458671530,20.73582557,168.79,168.72,18.92]
[1747458671531,26.0,168.76,168.72,18.92]
[1747458671728,26.0,168.76,168.72,101.02]
[1747458672519,26.0,168.76,168.72,82.1]
[1747458672723,26.0,168.76,168.72,18.92]
[1747458672943,20.74074073,168.75,168.71,37.86]
[1747458675934,5.92592592,168.75,168.71,37.86]
[1747458679246,5.92592592,168.75,168.71,119.96]
[1747458679543,5.92592592,168.75,168.71,119.8918062]
[1747458686055,20.74074073,168.75,168.71,119.8918062]
[1747458686656,26.0,168.72,168.71,100.9718062]
[1747458689079,31.92697961,168.72,168.71,100.9718062]
[1747458689555,31.92697961,168.72,168.71,82.1]
[1747458691253,31.92697961,168.72,168.7,18.92]
[1747458692227,31.92697961,168.72,168.68,37.84]
[1747458692228,46.74442863,168.72,168.68,37.84]
[1747458692432,46.74442863,168.72,168.68,18.92]
[1747458692754,46.74442863,168.72,168.64,82.1]
[1747458692959,46.74442863,168.72,168.64,18.92]
[1747458693348,76.37932668,168.72,168.64,18.92]
[1747458693735,79.33842709,168.72,168.64,18.92]
[1747458694537,76.37932668,168.72,168.64,18.92]
[1747458696138,76.37932668,168.72,168.63,18.92]
[1747458696346,76.37932668,168.72,168.64,18.92]
[1747458697467,76.37932668,168.72,168.63,37.84]
[1747458697962,1.654,168.71,168.63,37.84]
[1747458698267,1.654,168.71,168.63,18.92]
[1747458699334,26.0,168.65,168.6,18.92]
[1747458701267,5.92979127,168.64,168.6,18.92]
[1747458703461,20.75426944,168.64,168.6,18.92]
[1747458705772,26.0,168.61,168.51,227.83409154]
[1747458705980,26.0,168.57,168.45,18.92]
[1747458706270,8.1094,168.6,168.5,18.64964886]
[1747458706467,26.0,168.61,168.52,18.64964886]
[1747458706658,26.0,168.61,168.53,18.92]
[1747458707052,26.0,168.61,168.54,18.64964886]
[1747458707243,5.9311981,168.6,168.54,18.64964886]
[1747458707759,4.9511661,168.6,168.54,18.64964886]
[1747458710966,4.9511661,168.6,168.53,18.64964886]
[1747458711152,4.9511661,168.6,168.55,18.92]
[1747458716780,31.93093285,168.61,168.56,18.64964886]
[1747458716986,31.93093285,168.61,168.57,18.92]
[1747458717188,26.0,168.61,168.57,18.92]
[1747458718283,5.93023296,168.63,168.57,18.92]
[1747458718473,5.93023296,168.63,168.58,18.64964886]
[1747458718672,5.92985243,168.64,168.58,18.64964886]
[1747458720490,31.92952543,168.65,168.58,24.58149352]
[1747458720662,5.92952543,168.65,168.58,24.58149352]
[1747458721985,5.9290881,168.66,168.58,24.58149352]
[1747458723395,5.9290881,168.66,168.58,18.64964886]
[1747458725394,20.75180836,168.66,168.58,18.64964886]
[1747458726306,26.0,168.63,168.58,18.64964886]
[1747458726474,26.0,168.63,168.59,18.92]
[1747458727375,26.0,168.65,168.59,18.92]
[1747458727576,26.0,168.65,168.6,18.64964886]
[1747458728479,5.92979127,168.64,168.6,18.64964886]
[1747458730688,5.92979127,168.64,168.61,18.92]
[1747458734501,5.92979127,168.64,168.61,37.84]
[1747458736508,20.75426944,168.64,168.62,18.9]
[1747458737902,20.75426944,168.64,168.61,18.92]
[1747458740402,20.75426944,168.64,168.59,18.9]
[1747458743598,5.92979127,168.64,168.59,18.9]
[1747458744595,20.75426944,168.64,168.59,18.9]
[1747458746718,26.0,168.61,168.58,18.9]
[1747458747212,26.0,168.61,168.57,18.9]
[1747458747423,26.0,168.61,168.58,18.9]
[1747458747805,5.9311981,168.6,168.58,18.9]
[1747458748010,5.9311981,168.6,168.57,18.9]
[1747458748308,5.9311981,168.6,168.57,37.8]
[1747458748905,5.9311981,168.6,168.57,18.9]
[1747458749311,26.0,168.57,168.52,23.13643682]
[1747458750212,5.9326056,168.56,168.52,23.13643682]
[1747458751099,5.9326056,168.56,168.52,18.9]
[1747458751420,20.7641196,168.56,168.52,18.9]
[1747458757926,5.9326056,168.56,168.52,18.9]
[1747458758515,5.93190176,168.58,168.53,18.64964886]
[1747458760034,5.9311981,168.6,168.53,18.64964886]
[1747458760638,20.75919335,168.6,168.53,18.64964886]
[1747458761228,20.75919335,168.6,168.52,18.9]
[1747458761425,50.41518386,168.6,168.52,18.9]
[1747458761634,26.0,168.57,168.52,18.9]
[1747458762000,5.9326056,168.56,168.52,18.9]
[1747458763533,5.9326056,168.56,168.53,18.64964886]
[1747458763711,5.93190176,168.58,168.53,18.64964886]
[1747458765540,20.75979108,168.6,168.53,18.64964886]
[1747458770245,20.75979108,168.6,168.52,18.9]
[1747458771940,20.75979108,168.6,168.53,18.64964886]
[1747458772140,20.75979108,168.6,168.54,18.9]
[1747458772345,5.9311981,168.6,168.54,18.9]
[1747458776247,20.75919335,168.6,168.54,18.9]
[1747458781654,20.75919335,168.6,168.55,18.9]
[1747458786243,20.75919335,168.6,168.54,18.9]
[1747458786442,26.0,168.57,168.54,37.8]
[1747458787048,26.0,168.57,168.54,18.9]
[1747458787556,5.9326056,168.56,168.54,18.9]
[1747458787763,5.9326056,168.56,168.51,18.9]
[1747458787764,7.5626056,168.56,168.51,18.9]
[1747458788559,7.5626056,168.56,168.49,18.88]
[1747458788757,7.5626056,168.56,168.5,18.9]
[1747458789054,22.3941196,168.56,168.5,18.9]
[1747458791373,26.0,168.53,168.49,18.88]
[1747458792456,5.93401376,168.52,168.49,18.88]
[1747458792759,5.93401376,168.52,168.49,18.38]
[1747458795435,46.76867804,168.53,168.49,18.38]
[1747458799550,76.43698635,168.53,168.46,240.94]
[1747458799851,76.43698635,168.53,168.46,18.9]
[1747458800340,26.0,168.5,168.46,18.9]
[1747458801052,5.93507033,168.49,168.46,18.9]
[1747458801253,5.93507033,168.49,168.45,18.9]
[1747458802756,20.77274615,168.49,168.45,18.9]
[1747458804649,20.77274615,168.49,168.44,18.9]
[1747458805354,50.4480978,168.49,168.44,18.9]
[1747458805557,26.0,168.46,168.44,18.9]
[1747458805877,26.0,168.46,168.41,18.9]
[1747458806256,26.0,168.46,168.39,18.88]
[1747458806573,26.0,168.46,168.4,18.9]
[1747458806775,20.77767882,168.45,168.4,18.9]
[1747458807761,5.93647966,168.45,168.4,18.9]
[1747458809199,5.93507033,168.49,168.42,6.2129]
[1747458809397,5.93507033,168.49,168.43,18.64964886]
[1747458810451,5.9347181,168.5,168.43,18.64964886]
[1747458810663,5.9347181,168.5,168.43,100.74964886]
[1747458817155,20.77151335,168.5,168.43,100.74964886]
[1747458817660,20.77151335,168.5,168.44,18.88]
[1747458819480,20.77151335,168.5,168.45,18.88]
[1747458819688,20.77151335,168.5,168.46,18.88]
[1747458820273,20.77151335,168.5,168.45,18.88]
[1747458820471,26.0,168.47,168.46,18.88]
[1747458820682,26.0,168.47,168.45,18.88]
[1747458821287,5.93612727,168.46,168.45,18.88]
[1747458827472,5.93612727,168.46,168.36,4.23643682]
[1747458827473,27.5697,168.42,168.36,4.23643682]
[1747458827970,26.0,168.43,168.36,4.23643682]
[1747458828170,26.0,168.43,168.37,18.88]
[1747458829491,5.9375371,168.42,168.37,18.88]
[1747458830287,20.78137987,168.42,168.37,18.88]
[1747458835607,5.9375371,168.42,168.38,18.64964886]
[1747458835904,31.9375371,168.42,168.38,18.64964886]
[1747458838407,26.0,168.42,168.38,18.64964886]
[1747458841315,5.93788967,168.41,168.38,18.64964886]
[1747458841732,5.9368321,168.44,168.38,18.64964886]
[1747458842816,5.93577491,168.47,168.38,24.58853981]
[1747458843047,5.9347181,168.5,168.42,18.64964886]
[1747458843239,5.9347181,168.5,168.43,37.78]
[1747458843544,20.7665836,168.54,168.44,24.88784886]
[1747458843715,26.0,168.51,168.44,106.98784886]
[1747458843915,20.7665836,168.54,168.44,106.98784886]
[1747458844408,26.0,168.53,168.44,106.98784886]
[1747458844609,14.83415415,168.53,168.44,106.98784886]
[1747458844908,40.83415415,168.53,168.44,106.98784886]
[1747458845320,40.83415415,168.53,168.44,112.92465673]
[1747458846345,40.83415415,168.53,168.44,106.98784886]
[1747458846841,46.76781581,168.53,168.44,112.92461979]
[1747458848230,5.9333096,168.54,168.44,273.62461979]
[1747458849744,5.93295757,168.55,168.44,273.62461979]
[1747458850641,5.93295757,168.55,168.44,277.86105661]
[1747458855127,5.93295757,168.55,168.44,273.62461979]
[1747458856246,20.76535151,168.55,168.44,273.62461979]
[1747458859347,20.76535151,168.55,168.44,267.68784886]
[1747458859537,50.4301394,168.55,168.45,18.88]
[1747458859736,26.0,168.52,168.47,18.64964886]
[1747458860136,26.0,168.52,168.48,18.88]
[1747458860438,26.0,168.52,168.47,82.1]
[1747458860644,26.0,168.52,168.48,18.88]
[1747458861035,26.0,168.52,168.47,82.1]
[1747458861236,26.0,168.52,168.48,18.88]
[1747458861768,5.93436591,168.51,168.48,18.88]
[1747458861931,50.44211025,168.51,168.45,18.88]
[1747458862149,50.44211025,168.51,168.46,18.88]
[1747458862655,50.44211025,168.51,168.45,18.88]
[1747458862948,50.44211025,168.51,168.46,18.88]
[1747458864528,26.0,168.48,168.46,18.88]
[1747458865631,5.93577491,168.47,168.46,18.88]
[1747458868061,5.93507033,168.49,168.46,18.88]
[1747458868236,5.93507033,168.49,168.46,119.62964886]
[1747458870167,20.77028069,168.51,168.46,119.62964886]
[1747458874358,20.77028069,168.51,168.46,100.74964886]
[1747458874562,20.77028069,168.51,168.47,37.74]
[1747458875249,20.77028069,168.51,168.48,18.88]
[1747458876266,20.77028069,168.51,168.46,100.96]
[1747458876267,26.0,168.48,168.43,82.1]
[1747458876471,26.0,168.48,168.43,100.98]
[1747458877820,44.50774434,168.51,168.44,18.88]
[1747458878025,26.0,168.48,168.44,18.88]
[1747458878724,26.0,168.48,168.43,82.1]
[1747458878920,26.0,168.48,168.44,18.88]
[1747458880408,26.0,168.48,168.41,18.86]
[1747458880409,1.6168,168.46,168.41,18.88]
[1747458880790,20.77521219,168.47,168.41,18.88]
[1747458880986,20.77521219,168.47,168.4,18.64964886]
[1747458881194,20.77521219,168.47,168.41,18.88]
[1747458882301,14.83943728,168.47,168.41,18.88]
[1747458882496,14.83943728,168.47,168.41,17.88]
[1747458882699,14.83943728,168.47,168.4,18.64964886]
[1747458882883,26.0,168.44,168.37,82.1]
[1747458883084,26.0,168.44,168.38,18.88]
[1747458884095,28.58384604,168.43,168.35,82.43667447]
[1747458884323,28.58384604,168.43,168.35,0.33667447]
[1747458884523,22.39694604,168.43,168.35,0.33667447]
[1747458885525,22.39694604,168.43,168.36,18.88]
[1747458885928,22.39694604,168.43,168.35,0.33667447]
[1747458886125,22.39694604,168.43,168.36,18.9]
[1747458886524,52.08286897,168.43,168.35,0.33667447]
[1747458886824,1.6168,168.38,168.35,0.33667447]
[1747458888528,5.93930035,168.37,168.35,0.33667447]
[1747458889612,5.93859492,168.39,168.35,0.33667447]
[1747458890535,5.93824228,168.4,168.35,0.33667447]
[1747458891327,20.78384798,168.4,168.35,0.33667447]
[1747458894652,26.0,168.36,168.35,0.33667447]
[1747458895954,26.0,168.36,168.27,37.96964886]
[1747458895955,26.0,168.36,168.26,19.36]
[1747458896143,20.79002079,168.35,168.27,18.64964886]
[1747458900445,5.94000594,168.35,168.27,106.69244721]
[1747458901250,5.93930035,168.37,168.29,18.64964886]
[1747458901549,5.93930035,168.37,168.28,26.0]
[1747458901550,5.93930035,168.37,168.31,18.64964886]
[1747458901755,5.93930035,168.37,168.33,18.64964886]
[1747458902835,5.93824228,168.4,168.33,100.74964886]
[1747458903659,5.93824228,168.4,168.33,114.32599922]
[1747458904171,5.93718458,168.43,168.33,114.32599922]
[1747458904455,5.93718458,168.43,168.33,249.02599922]
[1747458904657,27.5636,168.44,168.33,249.02599922]
[1747458904658,5.93692649,168.44,168.33,249.02599922]
[1747458904863,26.0,168.44,168.33,263.87777846]
[1747458905960,31.93716595,168.44,168.33,263.87777846]
[1747458906751,31.93612727,168.46,168.37,18.64964886]
[1747458906955,31.93612727,168.46,168.38,38.52]
[1747458907153,5.93612727,168.46,168.38,38.52]
[1747458907462,31.93612727,168.46,168.38,38.52]
[1747458908061,31.93612727,168.46,168.4,18.64964886]
[1747458909369,5.9354226,168.48,168.4,88.03811593]
[1747458909973,5.9354226,168.48,168.41,18.64964886]
[1747458910146,5.9354226,168.48,168.41,100.74964886]
[1747458910346,5.9354226,168.48,168.41,106.6873621]
[1747458911264,5.93436591,168.51,168.41,106.6873621]
[1747458911467,31.93436591,168.51,168.41,241.3873621]
[1747458912468,5.93366166,168.53,168.43,18.64964886]
[1747458912773,5.93366166,168.53,168.45,18.64964886]